[Event "*** Titled Tuesday Blitz"]
[Site "Chess.com"]
[Date "2020.04.28"]
[Round "6"]
[White "Future2700"]
[Black "Bagirova"]
[Result "0-1"]
[WhiteElo "2390"]
[BlackElo "2224"]
[TimeControl "180+1"]
[EndTime "11:05:36 PDT"]
[Termination "Bagirova won by resignation"]

1. e4 {[%clk 0:03:00.9]} 1... c5 {[%clk 0:02:59.2]} 2. Nf3 {[%clk 0:03:00.6]}
2... d6 {[%clk 0:02:58.3]} 3. d4 {[%clk 0:03:00.2]} 3... cxd4 {[%clk 0:02:58.4]}
4. Nxd4 {[%clk 0:03:01.1]} 4... Nf6 {[%clk 0:02:58.7]} 5. Nc3 {[%clk 0:03:01.4]}
5... a6 {[%clk 0:02:59.2]} 6. g3 {[%clk 0:03:00.4]} 6... e6 {[%clk 0:02:59.6]}
7. Bg2 {[%clk 0:03:00.4]} 7... g6 {[%clk 0:03:00.5]} 8. O-O {[%clk 0:02:58.3]}
8... Bg7 {[%clk 0:03:01.4]} 9. Be3 {[%clk 0:02:54.6]} 9... Bf8 {[%clk
0:03:02.3]} 10. a4 {[%clk 0:02:52.2]} 10... Bg7 {[%clk 0:03:03.2]} 11. Re1
{[%clk 0:02:50.1]} 11... O-O {[%clk 0:03:04.1]} 12. a5 {[%clk 0:02:49.1]} 12...
Qc7 {[%clk 0:03:03.2]} 13. h3 {[%clk 0:02:43]} 13... Nc6 {[%clk 0:03:00.7]} 14.
Nb3 {[%clk 0:02:43.2]} 14... Nd7 {[%clk 0:02:55.5]} 15. Na4 {[%clk 0:02:40.3]}
15... Nce5 {[%clk 0:02:47.2]} 16. Nb6 {[%clk 0:02:37.4]} 16... Nxb6 {[%clk
0:02:44.4]} 17. Bxb6 {[%clk 0:02:37.7]} 17... Qe7 {[%clk 0:02:43.4]} 18. Qe2
{[%clk 0:02:13.6]} 18... Bd7 {[%clk 0:02:40.1]} 19. f4 {[%clk 0:02:13.9]} 19...
Bb5 {[%clk 0:02:39.9]} 20. Qf2 {[%clk 0:02:08.1]} 20... Nc4 {[%clk 0:02:39.7]}
21. c3 {[%clk 0:02:08.5]} 21... Nxb6 {[%clk 0:02:36.3]} 22. Qxb6 {[%clk
0:02:04.9]} 22... Rac8 {[%clk 0:02:31.5]} 23. Nd4 {[%clk 0:02:02.3]} 23... Bc6
{[%clk 0:02:11.4]} 24. c4 {[%clk 0:01:51.8]} 24... Qc7 {[%clk 0:02:04.1]} 25.
Nxc6 {[%clk 0:01:41.8]} 25... Qxb6+ {[%clk 0:02:01.3]} 26. axb6 {[%clk
0:01:42.4]} 26... Rxc6 {[%clk 0:02:01.1]} 27. Rab1 {[%clk 0:01:25]} 27... Rxc4
{[%clk 0:01:51.1]} 28. Red1 {[%clk 0:01:21.1]} 28... Bd4+ {[%clk 0:01:49.6]} 29.
Kf1 {[%clk 0:01:20.7]} 29... e5 {[%clk 0:01:42.4]} 30. Rd2 {[%clk 0:01:11]}
30... Rb4 {[%clk 0:01:39.7]} 31. b3 {[%clk 0:01:09.4]} 31... Rxb6 {[%clk
0:01:37.6]} 32. Ke2 {[%clk 0:01:09.8]} 32... Rc8 {[%clk 0:01:34.6]} 33. b4
{[%clk 0:01:01]} 33... Rc4 {[%clk 0:01:29.4]} 34. b5 {[%clk 0:00:49.2]} 34...
Rxb5 {[%clk 0:01:24.3]} 35. Rxb5 {[%clk 0:00:48.9]} 35... axb5 {[%clk
0:01:24.5]} 36. Rd3 {[%clk 0:00:49.6]} 36... b4 {[%clk 0:01:16.4]} 37. Rb3
{[%clk 0:00:49.6]} 37... Rc2+ {[%clk 0:01:14.1]} 38. Kf1 {[%clk 0:00:43.5]}
38... Rf2+ {[%clk 0:01:13]} 0-1

[Event "*** Titled Tuesday Blitz"]
[Site "Chess.com"]
[Date "2020.04.28"]
[Round "6"]
[White "Igor_Lysyj"]
[Black "Tayson_7"]
[Result "1/2-1/2"]
[WhiteElo "2793"]
[BlackElo "2646"]
[TimeControl "180+1"]
[EndTime "11:05:37 PDT"]
[Termination "Game drawn by repetition"]

1. d4 {[%clk 0:02:59.7]} 1... Nf6 {[%clk 0:03:00]} 2. c4 {[%clk 0:02:59.4]} 2...
g6 {[%clk 0:02:59.5]} 3. Nc3 {[%clk 0:02:58.9]} 3... c5 {[%clk 0:02:58.4]} 4. d5
{[%clk 0:02:58.6]} 4... Bg7 {[%clk 0:02:57.2]} 5. e4 {[%clk 0:02:58.1]} 5... d6
{[%clk 0:02:58.1]} 6. Nf3 {[%clk 0:02:57.3]} 6... O-O {[%clk 0:02:54.2]} 7. Be2
{[%clk 0:02:57.4]} 7... e6 {[%clk 0:02:54.3]} 8. O-O {[%clk 0:02:57]} 8... exd5
{[%clk 0:02:53.5]} 9. exd5 {[%clk 0:02:56.9]} 9... Bf5 {[%clk 0:02:50.2]} 10.
Nh4 {[%clk 0:02:55.9]} 10... Bd7 {[%clk 0:02:47.5]} 11. h3 {[%clk 0:02:52.4]}
11... Nxd5 {[%clk 0:02:44.7]} 12. Nxd5 {[%clk 0:02:50]} 12... Qxh4 {[%clk
0:02:44.6]} 13. Nc7 {[%clk 0:02:49.8]} 13... Be5 {[%clk 0:02:40.2]} 14. Bg4
{[%clk 0:02:40.2]} 14... Qe7 {[%clk 0:02:28.5]} 15. Nxa8 {[%clk 0:02:34.2]}
15... Nc6 {[%clk 0:02:28.8]} 16. Nc7 {[%clk 0:02:19.9]} 16... Bxg4 {[%clk
0:02:27.9]} 17. Nd5 {[%clk 0:02:15.7]} 17... Bxd1 {[%clk 0:02:27.9]} 18. Nxe7+
{[%clk 0:02:15.4]} 18... Nxe7 {[%clk 0:02:28.8]} 19. Rxd1 {[%clk 0:02:15.5]}
19... Nc6 {[%clk 0:02:22]} 20. Rb1 {[%clk 0:02:15.1]} 20... Kg7 {[%clk 0:02:18]}
21. b3 {[%clk 0:02:13.8]} 21... h5 {[%clk 0:02:07.9]} 22. Bd2 {[%clk 0:02:10.1]}
22... h4 {[%clk 0:02:05.3]} 23. Kf1 {[%clk 0:02:09.7]} 23... b6 {[%clk 0:02:03]}
24. Bg5 {[%clk 0:02:06.9]} 24... Rh8 {[%clk 0:01:59.6]} 25. a3 {[%clk
0:02:03.5]} 25... f6 {[%clk 0:01:56.7]} 26. Be3 {[%clk 0:02:00.6]} 26... g5
{[%clk 0:01:53.7]} 27. Rd3 {[%clk 0:01:59.7]} 27... a5 {[%clk 0:01:51]} 28. Rbd1
{[%clk 0:01:53.6]} 28... a4 {[%clk 0:01:47.8]} 29. bxa4 {[%clk 0:01:42.1]} 29...
Ra8 {[%clk 0:01:47.8]} 30. Rxd6 {[%clk 0:01:37.7]} 30... Bxd6 {[%clk 0:01:44.7]}
31. Rxd6 {[%clk 0:01:37.4]} 31... Nd4 {[%clk 0:01:39.4]} 32. Bxd4 {[%clk
0:01:09.4]} 32... cxd4 {[%clk 0:01:40.3]} 33. Rxb6 {[%clk 0:00:34.7]} 33... Rxa4
{[%clk 0:01:39.8]} 34. Rb3 {[%clk 0:00:34.8]} 34... Rxc4 {[%clk 0:01:38.3]} 35.
Ke1 {[%clk 0:00:34.9]} 35... Rc2 {[%clk 0:01:32]} 36. Rd3 {[%clk 0:00:33.7]}
36... Ra2 {[%clk 0:01:30.9]} 37. Rxd4 {[%clk 0:00:31.7]} 37... Rxa3 {[%clk
0:01:31.1]} 38. Ke2 {[%clk 0:00:31.1]} 38... Kg6 {[%clk 0:01:31.1]} 39. Rc4
{[%clk 0:00:29.8]} 39... Ra2+ {[%clk 0:01:31.2]} 40. Ke3 {[%clk 0:00:29.4]}
40... Ra3+ {[%clk 0:01:31.6]} 41. Ke2 {[%clk 0:00:29.5]} 41... Ra2+ {[%clk
0:01:31.8]} 42. Ke3 {[%clk 0:00:29.8]} 42... Ra3+ {[%clk 0:01:32.2]} 43. Ke2
{[%clk 0:00:30.1]} 1/2-1/2

[Event "*** Titled Tuesday Blitz"]
[Site "Chess.com"]
[Date "2020.04.28"]
[Round "6"]
[White "politeplayer"]
[Black "Dobuchak"]
[Result "1/2-1/2"]
[WhiteElo "2196"]
[BlackElo "2342"]
[TimeControl "180+1"]
[EndTime "11:05:37 PDT"]
[Termination "Game drawn by repetition"]

1. e4 {[%clk 0:02:58]} 1... c5 {[%clk 0:02:59.7]} 2. Nf3 {[%clk 0:02:55.6]} 2...
d6 {[%clk 0:03:00.2]} 3. d4 {[%clk 0:02:52.9]} 3... cxd4 {[%clk 0:03:01.1]} 4.
Nxd4 {[%clk 0:02:52.9]} 4... Nf6 {[%clk 0:03:01.4]} 5. Nc3 {[%clk 0:02:53.3]}
5... a6 {[%clk 0:03:02]} 6. Bc4 {[%clk 0:02:50.1]} 6... Qc7 {[%clk 0:03:01.2]}
7. Bb3 {[%clk 0:02:47]} 7... e6 {[%clk 0:03:01.7]} 8. f4 {[%clk 0:02:41]} 8...
Nc6 {[%clk 0:03:02]} 9. f5 {[%clk 0:02:35.7]} 9... Nxd4 {[%clk 0:02:54.1]} 10.
Qxd4 {[%clk 0:02:31.6]} 10... Be7 {[%clk 0:02:54.4]} 11. O-O {[%clk 0:02:28.7]}
11... O-O {[%clk 0:02:53.9]} 12. Kh1 {[%clk 0:02:28.3]} 12... b5 {[%clk
0:02:54]} 13. a4 {[%clk 0:02:16.9]} 13... e5 {[%clk 0:02:50.1]} 14. Qd3 {[%clk
0:02:12.8]} 14... b4 {[%clk 0:02:50.3]} 15. Nd5 {[%clk 0:02:11.3]} 15... Nxd5
{[%clk 0:02:50.4]} 16. Bxd5 {[%clk 0:02:11.9]} 16... Bb7 {[%clk 0:02:50.6]} 17.
Bxb7 {[%clk 0:02:07.2]} 17... Qxb7 {[%clk 0:02:51.5]} 18. a5 {[%clk 0:02:04.2]}
18... Rac8 {[%clk 0:02:45.8]} 19. f6 {[%clk 0:01:36.1]} 19... Bxf6 {[%clk
0:02:44.7]} 20. Rxf6 {[%clk 0:01:35]} 20... gxf6 {[%clk 0:02:45.6]} 21. Bh6
{[%clk 0:01:34.1]} 21... Kh8 {[%clk 0:02:46]} 22. Qf3 {[%clk 0:01:17.8]} 22...
Qe7 {[%clk 0:02:42.1]} 23. Bxf8 {[%clk 0:01:10.2]} 23... Rxf8 {[%clk 0:02:43]}
24. Rf1 {[%clk 0:01:08.3]} 24... Rc8 {[%clk 0:02:31.7]} 25. c3 {[%clk
0:00:58.7]} 25... bxc3 {[%clk 0:02:30.7]} 26. bxc3 {[%clk 0:00:57.2]} 26... Rb8
{[%clk 0:02:29.2]} 27. h3 {[%clk 0:00:53.3]} 27... Rb5 {[%clk 0:02:29.2]} 28.
Qxf6+ {[%clk 0:00:50.4]} 28... Qxf6 {[%clk 0:02:30.1]} 29. Rxf6 {[%clk
0:00:49.1]} 29... Kg7 {[%clk 0:02:27.2]} 30. Rxd6 {[%clk 0:00:48.6]} 30... Rxa5
{[%clk 0:02:27.8]} 31. c4 {[%clk 0:00:41.2]} 31... Rc5 {[%clk 0:02:19.8]} 32.
Rd5 {[%clk 0:00:19.4]} 32... Rxc4 {[%clk 0:02:19.7]} 33. Rxe5 {[%clk 0:00:18.5]}
33... Kg6 {[%clk 0:02:15.8]} 34. Kg1 {[%clk 0:00:18.2]} 34... f6 {[%clk
0:02:15.4]} 35. Ra5 {[%clk 0:00:16.3]} 35... Rxe4 {[%clk 0:02:12.9]} 36. Rxa6
{[%clk 0:00:15.8]} 36... Kg5 {[%clk 0:02:13.4]} 37. Kf2 {[%clk 0:00:14.9]} 37...
h5 {[%clk 0:02:10.8]} 38. Ra5+ {[%clk 0:00:13.9]} 38... f5 {[%clk 0:02:09.6]}
39. g3 {[%clk 0:00:13.5]} 39... Rb4 {[%clk 0:02:07.7]} 40. Kf3 {[%clk
0:00:12.9]} 40... Rb3+ {[%clk 0:02:07.6]} 41. Kg2 {[%clk 0:00:12.9]} 41... Kf6
{[%clk 0:02:03.6]} 42. Ra4 {[%clk 0:00:12.2]} 42... Kg5 {[%clk 0:02:00.2]} 43.
Rc4 {[%clk 0:00:11.1]} 43... Rb2+ {[%clk 0:01:59.7]} 44. Kf3 {[%clk 0:00:10.4]}
44... Rb3+ {[%clk 0:02:00.2]} 45. Kg2 {[%clk 0:00:10.1]} 45... Rb2+ {[%clk
0:02:00.8]} 46. Kf3 {[%clk 0:00:10.3]} 46... Rb3+ {[%clk 0:01:59.7]} 47. Kg2
{[%clk 0:00:10.5]} 1/2-1/2

[Event "*** Titled Tuesday Blitz"]
[Site "Chess.com"]
[Date "2020.04.28"]
[Round "6"]
[White "Shuvalov"]
[Black "MusicCityMaster"]
[Result "0-1"]
[WhiteElo "2458"]
[BlackElo "2281"]
[TimeControl "180+1"]
[EndTime "11:05:38 PDT"]
[Termination "MusicCityMaster won by checkmate"]

1. Nf3 {[%clk 0:02:53.7]} 1... Nf6 {[%clk 0:02:59.1]} 2. c4 {[%clk 0:02:53.4]}
2... c5 {[%clk 0:02:59.2]} 3. g3 {[%clk 0:02:53.4]} 3... g6 {[%clk 0:02:58.8]}
4. Bg2 {[%clk 0:02:53.5]} 4... Bg7 {[%clk 0:02:59.2]} 5. O-O {[%clk 0:02:53.7]}
5... O-O {[%clk 0:02:58]} 6. Nc3 {[%clk 0:02:54]} 6... Nc6 {[%clk 0:02:57.6]} 7.
d4 {[%clk 0:02:54]} 7... cxd4 {[%clk 0:02:57.9]} 8. Nxd4 {[%clk 0:02:54.9]} 8...
Nxd4 {[%clk 0:02:57.6]} 9. Qxd4 {[%clk 0:02:54.7]} 9... d6 {[%clk 0:02:57.7]}
10. Qh4 {[%clk 0:02:53.8]} 10... Be6 {[%clk 0:02:34.4]} 11. Bxb7 {[%clk
0:02:31.5]} 11... Rb8 {[%clk 0:02:34]} 12. Bf3 {[%clk 0:02:28.9]} 12... Qa5
{[%clk 0:02:31.3]} 13. e3 {[%clk 0:01:45.4]} 13... Rfc8 {[%clk 0:02:28.7]} 14.
Be2 {[%clk 0:01:45.8]} 14... g5 {[%clk 0:02:10.9]} 15. Qd4 {[%clk 0:01:38.6]}
15... Nd5 {[%clk 0:02:10.1]} 16. Qd1 {[%clk 0:01:25.4]} 16... Nxc3 {[%clk
0:02:06.9]} 17. bxc3 {[%clk 0:01:23.2]} 17... Qxc3 {[%clk 0:02:06.6]} 18. Bd2
{[%clk 0:01:20.6]} 18... Qxa1 {[%clk 0:02:06.2]} 19. Qxa1 {[%clk 0:01:20.8]}
19... Bxa1 {[%clk 0:02:05.9]} 20. Rxa1 {[%clk 0:01:21.7]} 20... Rb2 {[%clk
0:02:05.2]} 21. Rd1 {[%clk 0:01:17.8]} 21... Bxc4 {[%clk 0:02:03.1]} 22. Bxc4
{[%clk 0:01:14.4]} 22... Rxc4 {[%clk 0:02:02.2]} 23. a3 {[%clk 0:01:14.1]} 23...
Rcc2 {[%clk 0:01:56]} 24. Be1 {[%clk 0:01:13.1]} 24... Ra2 {[%clk 0:01:55.8]}
25. g4 {[%clk 0:01:03.9]} 25... Rxa3 {[%clk 0:01:51.9]} 26. Rb1 {[%clk
0:01:03.8]} 26... f6 {[%clk 0:01:47.5]} 27. Kf1 {[%clk 0:01:02.8]} 27... Raa2
{[%clk 0:01:45.4]} 28. Kg2 {[%clk 0:01:01.1]} 28... a5 {[%clk 0:01:43.4]} 29.
Rb7 {[%clk 0:00:57.1]} 29... Kf7 {[%clk 0:01:42.5]} 30. Ra7 {[%clk 0:00:57.3]}
30... a4 {[%clk 0:01:41.8]} 31. Kg3 {[%clk 0:00:56.1]} 31... Re2 {[%clk
0:01:30.9]} 32. Bb4 {[%clk 0:00:55.5]} 32... Ke6 {[%clk 0:01:25.4]} 33. Ba5
{[%clk 0:00:53.5]} 33... Rxf2 {[%clk 0:01:21.7]} 34. Bd8 {[%clk 0:00:51.3]}
34... Rg2+ {[%clk 0:01:21.5]} 35. Kf3 {[%clk 0:00:49.4]} 35... Rxh2 {[%clk
0:01:03.9]} 36. Rxe7+ {[%clk 0:00:48.4]} 36... Kd5 {[%clk 0:01:03.9]} 37. Ra7
{[%clk 0:00:35.7]} 37... Rh3# {[%clk 0:01:02.8]} 0-1

[Event "*** Titled Tuesday Blitz"]
[Site "Chess.com"]
[Date "2020.04.28"]
[Round "6"]
[White "mortngabriel"]
[Black "AlexTriapishko"]
[Result "0-1"]
[WhiteElo "2477"]
[BlackElo "2750"]
[TimeControl "180+1"]
[EndTime "11:05:39 PDT"]
[Termination "AlexTriapishko won on time"]

1. d4 {[%clk 0:03:00.9]} 1... Nf6 {[%clk 0:02:58.3]} 2. c4 {[%clk 0:02:59.8]}
2... e6 {[%clk 0:02:55.2]} 3. Nf3 {[%clk 0:02:59.9]} 3... d5 {[%clk 0:02:54.2]}
4. Nc3 {[%clk 0:02:59.5]} 4... c6 {[%clk 0:02:52.5]} 5. e3 {[%clk 0:02:48.9]}
5... Nbd7 {[%clk 0:02:45.7]} 6. Bd3 {[%clk 0:02:47.9]} 6... dxc4 {[%clk
0:02:34.1]} 7. Bxc4 {[%clk 0:02:48.8]} 7... b5 {[%clk 0:02:34.6]} 8. Be2 {[%clk
0:02:42]} 8... Bb7 {[%clk 0:02:34.3]} 9. O-O {[%clk 0:02:41.6]} 9... a6 {[%clk
0:02:33.1]} 10. e4 {[%clk 0:02:25]} 10... c5 {[%clk 0:02:32.8]} 11. d5 {[%clk
0:02:24.6]} 11... exd5 {[%clk 0:02:30.4]} 12. e5 {[%clk 0:01:55.7]} 12... Ne4
{[%clk 0:02:29.8]} 13. Nxd5 {[%clk 0:01:34.3]} 13... Nb6 {[%clk 0:02:29.7]} 14.
Nxb6 {[%clk 0:01:28.9]} 14... Qxb6 {[%clk 0:02:30.6]} 15. Be3 {[%clk 0:01:19.6]}
15... Be7 {[%clk 0:02:20.4]} 16. Qc2 {[%clk 0:01:09.1]} 16... O-O {[%clk
0:02:19.7]} 17. Rfd1 {[%clk 0:00:39]} 17... Rfd8 {[%clk 0:02:16.8]} 18. b4
{[%clk 0:00:34.1]} 18... Qg6 {[%clk 0:02:11]} 19. bxc5 {[%clk 0:00:31.2]} 19...
Nxc5 {[%clk 0:02:11.1]} 20. Qxg6 {[%clk 0:00:27.8]} 20... hxg6 {[%clk 0:02:12]}
21. Rac1 {[%clk 0:00:26.2]} 21... Rxd1+ {[%clk 0:02:06.8]} 22. Rxd1 {[%clk
0:00:27.1]} 22... Rc8 {[%clk 0:01:59.3]} 23. h3 {[%clk 0:00:15.9]} 23... Bf8
{[%clk 0:01:50.4]} 24. Rc1 {[%clk 0:00:13.2]} 24... Na4 {[%clk 0:01:49.1]} 25.
Rxc8 {[%clk 0:00:12.8]} 25... Bxc8 {[%clk 0:01:50]} 26. Bd4 {[%clk 0:00:12.3]}
26... Be6 {[%clk 0:01:46.8]} 27. Nd2 {[%clk 0:00:04.7]} 27... Bxa2 {[%clk
0:01:46.7]} 28. f4 {[%clk 0:00:05.6]} 28... Bc5 {[%clk 0:01:45.2]} 29. Nf3
{[%clk 0:00:04]} 29... Bd5 {[%clk 0:01:44.6]} 30. Bxc5 {[%clk 0:00:02.2]} 30...
Nxc5 {[%clk 0:01:45.5]} 31. Kf2 {[%clk 0:00:02.9]} 31... b4 {[%clk 0:01:40.7]}
32. Ke3 {[%clk 0:00:03.2]} 32... a5 {[%clk 0:01:38.3]} 33. g4 {[%clk 0:00:01.6]}
33... a4 {[%clk 0:01:36.1]} 0-1

[Event "*** Titled Tuesday Blitz"]
[Site "Chess.com"]
[Date "2020.04.28"]
[Round "6"]
[White "PavlovDanila"]
[Black "pichonazo"]
[Result "1-0"]
[WhiteElo "2731"]
[BlackElo "2436"]
[TimeControl "180+1"]
[EndTime "11:05:40 PDT"]
[Termination "PavlovDanila won by resignation"]

1. e4 {[%clk 0:02:57.6]} 1... Nc6 {[%clk 0:03:00]} 2. Nf3 {[%clk 0:02:56.5]}
2... d6 {[%clk 0:02:59.7]} 3. d4 {[%clk 0:02:56.3]} 3... Nf6 {[%clk 0:03:00]} 4.
Nc3 {[%clk 0:02:51.8]} 4... Bg4 {[%clk 0:02:59.5]} 5. Be2 {[%clk 0:02:51]} 5...
e6 {[%clk 0:02:58.9]} 6. Be3 {[%clk 0:02:49.9]} 6... d5 {[%clk 0:02:56.6]} 7. e5
{[%clk 0:02:46.8]} 7... Ne4 {[%clk 0:02:56.5]} 8. Nb1 {[%clk 0:02:41.7]} 8...
Be7 {[%clk 0:02:53.4]} 9. h3 {[%clk 0:02:41.5]} 9... Bh5 {[%clk 0:02:52.3]} 10.
g4 {[%clk 0:02:37.1]} 10... Bg6 {[%clk 0:02:52.1]} 11. h4 {[%clk 0:02:33.3]}
11... h5 {[%clk 0:02:50.3]} 12. g5 {[%clk 0:02:33.5]} 12... Qd7 {[%clk
0:02:44.6]} 13. c3 {[%clk 0:02:30]} 13... f6 {[%clk 0:02:43.3]} 14. gxf6 {[%clk
0:02:26.9]} 14... gxf6 {[%clk 0:02:44.2]} 15. Rg1 {[%clk 0:02:27.2]} 15... Bf7
{[%clk 0:02:37.5]} 16. Nbd2 {[%clk 0:02:25.4]} 16... O-O-O {[%clk 0:02:34.7]}
17. exf6 {[%clk 0:02:18.3]} 17... Nxf6 {[%clk 0:02:22.2]} 18. Qc2 {[%clk
0:01:59.1]} 18... Ng4 {[%clk 0:02:19.6]} 19. Bg5 {[%clk 0:01:56.8]} 19... Rdg8
{[%clk 0:02:11.4]} 20. Bxe7 {[%clk 0:01:53.3]} 20... Qxe7 {[%clk 0:02:08.9]} 21.
Ng5 {[%clk 0:01:45.5]} 21... e5 {[%clk 0:02:04.2]} 22. Qf5+ {[%clk 0:01:33.8]}
22... Kb8 {[%clk 0:02:02.8]} 23. Qxf7 {[%clk 0:01:30]} 23... Qd6 {[%clk
0:02:02.6]} 24. Bxg4 {[%clk 0:01:27.5]} 24... hxg4 {[%clk 0:02:02.1]} 25. Qe6
{[%clk 0:01:22.7]} 25... Rxh4 {[%clk 0:01:54]} 26. Qxd6 {[%clk 0:01:15.4]} 26...
cxd6 {[%clk 0:01:54.9]} 27. Nf7 {[%clk 0:01:11.2]} 27... exd4 {[%clk 0:01:53.7]}
28. Nxd6 {[%clk 0:01:08.6]} 28... dxc3 {[%clk 0:01:53.5]} 29. bxc3 {[%clk
0:01:09.5]} 29... Rh6 {[%clk 0:01:40.4]} 30. Nf5 {[%clk 0:01:06.2]} 30... Re6+
{[%clk 0:01:39.4]} 31. Kf1 {[%clk 0:01:03.3]} 31... Rf6 {[%clk 0:01:33.5]} 32.
Ne3 {[%clk 0:00:59.7]} 32... g3 {[%clk 0:01:32.1]} 33. f3 {[%clk 0:00:55.5]}
33... Ne5 {[%clk 0:01:29.9]} 34. Kg2 {[%clk 0:00:47.6]} 34... Nd3 {[%clk
0:01:25.8]} 35. Ng4 {[%clk 0:00:36.6]} 35... Rxg4 {[%clk 0:01:15.6]} 36. fxg4
{[%clk 0:00:34.4]} 36... Rf2+ {[%clk 0:01:16]} 37. Kxg3 {[%clk 0:00:34.4]} 37...
Rxd2 {[%clk 0:01:16.6]} 38. Rad1 {[%clk 0:00:34]} 1-0

[Event "*** Titled Tuesday Blitz"]
[Site "Chess.com"]
[Date "2020.04.28"]
[Round "6"]
[White "GM_Levan_Pantsulaia"]
[Black "Berardino"]
[Result "1-0"]
[WhiteElo "2821"]
[BlackElo "2670"]
[TimeControl "180+1"]
[EndTime "11:05:44 PDT"]
[Termination "GM_Levan_Pantsulaia won by resignation"]

1. Nf3 {[%clk 0:03:00.9]} 1... d5 {[%clk 0:02:59.9]} 2. c4 {[%clk 0:02:59.5]}
2... d4 {[%clk 0:02:59.7]} 3. g3 {[%clk 0:02:58.5]} 3... Nc6 {[%clk 0:02:58.1]}
4. Bg2 {[%clk 0:02:54]} 4... e5 {[%clk 0:02:58.5]} 5. O-O {[%clk 0:02:53.5]}
5... e4 {[%clk 0:02:57.8]} 6. Ne1 {[%clk 0:02:51.5]} 6... h5 {[%clk 0:02:58]} 7.
d3 {[%clk 0:02:47.3]} 7... h4 {[%clk 0:02:54]} 8. dxe4 {[%clk 0:02:43.4]} 8...
hxg3 {[%clk 0:02:48.8]} 9. hxg3 {[%clk 0:02:36.3]} 9... Be6 {[%clk 0:02:32.8]}
10. Nd2 {[%clk 0:02:32.1]} 10... Qd7 {[%clk 0:02:32.2]} 11. b3 {[%clk
0:02:25.3]} 11... Bh3 {[%clk 0:02:29.6]} 12. Ndf3 {[%clk 0:02:18.1]} 12... Nf6
{[%clk 0:02:06.5]} 13. Ng5 {[%clk 0:02:10.4]} 13... Bxg2 {[%clk 0:02:05.1]} 14.
Nxg2 {[%clk 0:02:07.7]} 14... O-O-O {[%clk 0:01:19.4]} 15. a3 {[%clk 0:01:51.2]}
15... Bd6 {[%clk 0:01:10.5]} 16. b4 {[%clk 0:01:46.9]} 16... Nxe4 {[%clk
0:01:06.7]} 17. Nxe4 {[%clk 0:01:38.7]} 17... Qh3 {[%clk 0:01:06.8]} 18. f4
{[%clk 0:01:30.6]} 18... f5 {[%clk 0:00:56.1]} 19. Ng5 {[%clk 0:01:20.6]} 19...
Qxg3 {[%clk 0:00:35]} 20. Qd3 {[%clk 0:01:20.3]} 20... Qh2+ {[%clk 0:00:23.8]}
21. Kf2 {[%clk 0:01:20.3]} 21... Rde8 {[%clk 0:00:20.7]} 22. Bd2 {[%clk
0:01:09.4]} 22... Re3 {[%clk 0:00:12]} 23. Bxe3 {[%clk 0:01:05.4]} 23... dxe3+
{[%clk 0:00:12.9]} 24. Qxe3 {[%clk 0:01:05.1]} 1-0

[Event "*** Titled Tuesday Blitz"]
[Site "Chess.com"]
[Date "2020.04.28"]
[Round "6"]
[White "smshk35"]
[Black "Embrujada"]
[Result "0-1"]
[WhiteElo "2368"]
[BlackElo "2455"]
[TimeControl "180+1"]
[EndTime "11:05:44 PDT"]
[Termination "Embrujada won by checkmate"]

1. e4 {[%clk 0:03:00.9]} 1... c5 {[%clk 0:02:56.2]} 2. Nf3 {[%clk 0:03:00.9]}
2... e6 {[%clk 0:02:56.6]} 3. d4 {[%clk 0:03:00.2]} 3... cxd4 {[%clk 0:02:56.8]}
4. Nxd4 {[%clk 0:03:01.1]} 4... a6 {[%clk 0:02:57.3]} 5. Be2 {[%clk 0:03:00]}
5... b5 {[%clk 0:02:56.3]} 6. a4 {[%clk 0:02:55.3]} 6... b4 {[%clk 0:02:56.1]}
7. O-O {[%clk 0:02:54.1]} 7... Bb7 {[%clk 0:02:55.7]} 8. f4 {[%clk 0:02:52.9]}
8... Nf6 {[%clk 0:02:52.9]} 9. Bf3 {[%clk 0:02:39.4]} 9... Bc5 {[%clk
0:02:47.2]} 10. Kh1 {[%clk 0:02:35.1]} 10... Nxe4 {[%clk 0:02:44.2]} 11. f5
{[%clk 0:02:22.3]} 11... Qh4 {[%clk 0:02:36.5]} 12. Bxe4 {[%clk 0:02:12.2]}
12... Qxe4 {[%clk 0:02:26.4]} 13. Nf3 {[%clk 0:02:08.2]} 13... Qxf5 {[%clk
0:02:22.9]} 14. Nbd2 {[%clk 0:02:03.8]} 14... O-O {[%clk 0:02:18.8]} 15. Nb3
{[%clk 0:02:00.5]} 15... Ba7 {[%clk 0:02:13.3]} 16. Nbd4 {[%clk 0:01:57.5]}
16... Qd5 {[%clk 0:02:11.4]} 17. c4 {[%clk 0:01:52.6]} 17... bxc3 {[%clk
0:02:10.5]} 18. bxc3 {[%clk 0:01:53.5]} 18... Nc6 {[%clk 0:02:10.3]} 19. Ba3
{[%clk 0:01:53.9]} 19... Nxd4 {[%clk 0:02:06]} 20. cxd4 {[%clk 0:01:51.3]} 20...
Rfc8 {[%clk 0:02:01.6]} 21. Rb1 {[%clk 0:01:51]} 21... Rc4 {[%clk 0:01:59]} 22.
Qb3 {[%clk 0:01:47.9]} 22... Bc6 {[%clk 0:01:58.2]} 23. Rf2 {[%clk 0:01:35.6]}
23... Rxa4 {[%clk 0:01:46]} 24. Ne5 {[%clk 0:01:27.8]} 24... Qxb3 {[%clk
0:01:34.1]} 25. Rxb3 {[%clk 0:01:28.7]} 25... Bxd4 {[%clk 0:01:31.3]} 26. Nxc6
{[%clk 0:01:28.4]} 26... Bxf2 {[%clk 0:01:29.3]} 27. Ne7+ {[%clk 0:01:28.7]}
27... Kh8 {[%clk 0:01:29.5]} 28. Rf3 {[%clk 0:01:29.6]} 28... f6 {[%clk
0:01:24.5]} 29. g4 {[%clk 0:01:22.9]} 29... Re8 {[%clk 0:01:23.5]} 30. g5 {[%clk
0:01:22.7]} 30... Rxa3 {[%clk 0:01:09.1]} 31. gxf6 {[%clk 0:01:20.7]} 31... gxf6
{[%clk 0:01:08.1]} 32. Rxa3 {[%clk 0:01:17]} 32... Rxe7 {[%clk 0:01:08.5]} 33.
Rxa6 {[%clk 0:01:17.9]} 33... Kg7 {[%clk 0:01:08]} 34. Ra4 {[%clk 0:01:16.7]}
34... Bc5 {[%clk 0:01:07.2]} 35. Rg4+ {[%clk 0:01:16.2]} 35... Kf7 {[%clk
0:01:07.1]} 36. h4 {[%clk 0:01:17.1]} 36... d6 {[%clk 0:01:06.9]} 37. h5 {[%clk
0:01:18]} 37... f5 {[%clk 0:01:07.4]} 38. Rg5 {[%clk 0:01:18.2]} 38... Kf6
{[%clk 0:01:07.7]} 39. Rg2 {[%clk 0:01:17.7]} 39... Rb7 {[%clk 0:01:08.2]} 40.
h6 {[%clk 0:01:18.6]} 40... f4 {[%clk 0:01:08.1]} 41. Kh2 {[%clk 0:01:19.5]}
41... Kf5 {[%clk 0:01:08.5]} 42. Rg7 {[%clk 0:01:19.7]} 42... Rb2+ {[%clk
0:01:06]} 43. Kh3 {[%clk 0:01:19.8]} 43... Rb3+ {[%clk 0:00:53]} 44. Kh4 {[%clk
0:01:19.7]} 44... Bf2+ {[%clk 0:00:51.5]} 45. Rg3 {[%clk 0:01:19.4]} 45... Bxg3+
{[%clk 0:00:50.8]} 46. Kh5 {[%clk 0:01:19.9]} 46... Bh2 {[%clk 0:00:47.9]} 47.
Kh4 {[%clk 0:01:20.2]} 47... f3 {[%clk 0:00:48.1]} 48. Kh5 {[%clk 0:01:20.6]}
48... f2 {[%clk 0:00:48.3]} 49. Kh4 {[%clk 0:01:21.1]} 49... f1=Q {[%clk
0:00:48]} 50. Kh5 {[%clk 0:01:22]} 50... Qh3# {[%clk 0:00:48.2]} 0-1